bitfinex/quotes_SOLUSD_20240530
["timestamp","ask_amount","ask_price","bid_price","bid_amount"]
[1717091278189,22.5175,171.94,171.9,45.0]
[1717091278386,6.0383,171.93,171.9,45.0]
[1717091280610,6.2044,171.92,171.9,45.0]
[1717091280929,6.2044,171.93,171.87,60.0]
[1717091281133,6.2044,171.93,171.85,60.0]
[1717091282229,6.2044,171.93,171.83,60.0]
[1717091282414,20.5,171.9,171.83,60.0]
[1717091283506,20.5,171.9,171.79,17.69]
[1717091283507,20.5,171.9,171.85,60.0]
[1717091283710,6.6363,171.89,171.85,60.0]
[1717091283933,6.6363,171.89,171.83,60.0]
[1717091284107,6.6363,171.89,171.81,60.0]
[1717091284517,6.6363,171.89,171.84,60.0]
[1717091285536,20.5,171.9,171.86,60.0]
[1717091285740,20.5,171.9,171.87,45.0]
[1717091286242,6.1382,171.89,171.87,45.0]
[1717091287018,6.1382,171.88,171.87,45.0]
[1717091288941,21.6591,171.88,171.82,60.0]
[1717091289742,21.6591,171.88,171.75,253.2]
[1717091289743,21.6591,171.88,171.8,60.0]
[1717091291125,21.6591,171.88,171.81,45.0]
[1717091292847,26.9918,171.85,171.78,60.0]
[1717091293523,26.9918,171.85,171.76,60.0]
[1717091293930,26.9918,171.85,171.74,60.0]
[1717091294351,20.5,171.8,171.74,60.0]
[1717091295352,20.5,171.8,171.72,60.0]
[1717091296051,6.4918,171.85,171.78,60.0]
[1717091296263,26.9918,171.85,171.78,60.0]
[1717091296431,26.9918,171.85,171.76,17.69]
[1717091296432,6.4918,171.85,171.82,60.0]
[1717091297260,6.0554,171.89,171.83,45.0]
[1717091298454,17.58,171.84,171.83,45.0]
[1717091298667,6.5875,171.94,171.87,60.0]
[1717091298831,17.58,171.9,171.88,45.0]
[1717091300435,24.1675,171.9,171.88,45.0]
[1717091300637,6.5875,171.98,171.92,60.0]
[1717091300851,0.68372235,172.0,171.93,45.0]
[1717091300852,15.4109,171.96,171.93,45.0]
[1717091301046,24.1675,171.94,171.93,45.0]
[1717091301255,17.58,171.94,171.93,45.0]
[1717091303842,23.9104,171.94,171.93,45.0]
[1717091304045,38.9325,171.94,171.87,60.0]
[1717091304370,6.3304,171.94,171.87,60.0]
[1717091304571,6.1814,171.94,171.87,60.0]
[1717091304966,6.1814,171.94,171.83,17.69]
[1717091304967,6.1814,171.94,171.88,60.0]
[1717091305165,6.1814,171.94,171.9,60.0]
[1717091305667,6.1814,171.94,171.91,45.0]
[1717091306462,20.5,171.95,171.91,45.0]
[1717091306665,6.2322,171.95,171.91,45.0]
[1717091307966,6.2322,171.95,171.92,60.0]
[1717091308162,21.2543,171.98,171.92,60.0]
[1717091308667,21.2543,171.98,171.91,45.0]
[1717091310250,6.2322,171.98,171.95,60.0]
[1717091310648,6.2322,171.98,171.92,60.0]
[1717091311148,6.2322,171.98,171.94,60.0]
[1717091312051,6.0776,172.01,171.97,60.0]
[1717091312957,26.5492,172.02,171.93,60.0]
[1717091313454,26.5492,172.02,171.91,60.0]
[1717091313654,20.5,171.97,171.89,60.0]
[1717091314176,20.5,171.97,171.87,60.0]
[1717091314569,20.5,171.97,171.9,60.0]
[1717091315651,6.6023,171.96,171.9,60.0]
[1717091316156,6.639,171.96,171.93,60.0]
[1717091316552,6.639,171.95,171.91,60.0]
[1717091316789,6.639,171.95,171.89,60.0]
[1717091319974,6.639,171.95,171.91,60.0]
[1717091320779,27.1521,171.97,171.91,60.0]
[1717091320964,20.5,171.97,171.93,60.0]
[1717091321281,20.5,171.97,171.91,17.69]
[1717091321282,20.5,171.97,171.95,60.0]
[1717091322788,20.5,171.97,171.93,60.0]
[1717091322983,20.5,171.97,171.95,60.0]
[1717091323359,43.3835,172.02,171.97,60.0]
[1717091323560,6.5033,172.01,171.97,60.0]
[1717091323759,6.5033,172.0,171.97,60.0]
[1717091324398,17.56,171.98,171.94,60.0]
[1717091324576,23.9515,171.98,171.94,60.0]
[1717091324771,17.56,171.95,171.94,60.0]
[1717091326475,23.5855,171.95,171.89,60.0]
[1717091326788,17.56,171.92,171.89,60.0]
[1717091328711,0.68372235,172.0,171.91,60.0]
[1717091329006,17.56,171.95,171.93,60.0]
[1717091329592,22.0564,172.01,171.98,60.0]
[1717091329889,17.56,171.99,171.98,60.0]
[1717091330315,17.56,171.99,171.96,60.0]
[1717091330776,24.1434,171.99,171.96,60.0]
[1717091334089,24.1434,171.99,171.91,19.8422]
[1717091334090,22.1679,171.97,171.85,60.0]
[1717091334305,17.56,171.89,171.86,60.0]
[1717091338110,17.56,171.89,171.88,60.0]
[1717091338504,17.56,171.92,171.9,60.0]
[1717091339591,17.56,171.95,171.92,60.0]
[1717091340507,23.7104,171.95,171.9,60.0]
[1717091340712,17.56,171.91,171.88,60.0]
[1717091343014,23.9276,171.91,171.88,60.0]
[1717091343728,21.9743,171.9,171.82,60.0]
[1717091343927,17.56,171.87,171.82,60.0]
[1717091344094,17.56,171.87,171.85,60.0]
[1717091344497,21.9743,171.9,171.85,60.0]
[1717091344802,17.56,171.88,171.85,60.0]
[1717091345511,17.56,171.88,171.87,60.0]
[1717091345921,21.9743,171.94,171.87,60.0]
[1717091346123,17.56,171.91,171.87,60.0]
[1717091346434,6.5181,171.9,171.87,60.0]
[1717091346921,6.5181,171.9,171.85,60.0]
[1717091347128,6.3543,171.95,171.87,60.0]
[1717091347294,17.56,171.91,171.87,60.0]
[1717091347822,17.56,171.97,171.96,60.0]
[1717091349024,17.56,171.97,171.94,60.0]
[1717091349724,17.56,171.97,171.96,60.0]
[1717091351202,24.0474,171.97,171.92,60.0]
[1717091351416,17.56,171.94,171.92,60.0]
[1717091352020,17.56,171.99,171.96,60.0]
[1717091353103,6.3889,171.98,171.94,60.0]
[1717091353306,17.56,171.99,171.96,60.0]
[1717091353805,22.5821,172.01,171.98,60.0]
[1717091354010,17.56,171.99,171.98,60.0]
[1717091355220,17.56,171.99,171.96,60.0]
[1717091356405,24.1918,171.99,171.96,60.0]
[1717091356606,17.56,171.99,171.96,60.0]
[1717091357518,17.56,171.99,171.98,60.0]
[1717091359124,17.56,171.99,171.96,60.0]
[1717091359324,5.9109832,172.06,171.98,60.0]
[1717091359511,17.56,171.99,171.96,60.0]
[1717091359822,17.56,171.99,171.98,60.0]
[1717091360030,17.56,172.0,171.98,60.0]
[1717091360402,6.2443,172.04,171.96,60.0]
[1717091360607,6.2443,172.04,171.88,6.0363]
[1717091360608,17.56,171.97,171.93,60.0]
[1717091360843,17.56,171.97,171.95,60.0]
[1717091361625,6.1289,172.03,171.97,60.0]
[1717091361928,17.56,171.98,171.97,60.0]
[1717091363540,17.56,171.99,171.97,60.0]
[1717091363908,23.9217,171.99,171.95,60.0]
[1717091364108,23.9217,171.99,171.93,60.0]
[1717091364534,23.9217,171.99,171.96,60.0]
[1717091364721,17.56,171.97,171.96,60.0]
[1717091366637,6.81472235,172.04,171.98,60.0]
[1717091366849,17.56,172.0,171.98,60.0]
[1717091368641,6.131,172.04,171.98,60.0]
[1717091368942,17.56,171.99,171.98,60.0]
[1717091371441,23.56,171.99,171.94,60.0]
[1717091371746,17.56,171.95,171.92,60.0]
[1717091373541,17.56,171.95,171.89,17.69]
[1717091373542,17.56,171.95,171.94,60.0]
[1717091374531,17.56,171.98,171.97,60.0]
[1717091375942,17.56,171.98,171.93,60.0]
[1717091376128,17.56,171.98,171.95,60.0]
[1717091376748,6.1945,172.01,171.95,60.0]
[1717091376925,17.56,171.98,171.97,60.0]
[1717091383248,17.56,171.98,171.95,60.0]
[1717091383958,23.7024,171.98,171.93,60.0]
[1717091384331,23.7024,171.98,171.95,60.0]
[1717091384549,17.56,171.98,171.97,60.0]
[1717091384743,17.56,171.98,171.9,17.69]
[1717091384744,17.56,171.98,171.95,60.0]
[1717091386751,24.102,171.98,171.95,60.0]
[1717091386958,24.102,171.98,171.94,60.0]
[1717091387627,17.56,171.98,171.96,60.0]
[1717091388260,5.85,171.97,171.96,60.0]
[1717091388473,6.542,172.0,171.96,60.0]
[1717091388627,5.85,171.97,171.9,19.8424]
[1717091388830,23.4,171.99,171.93,60.0]
[1717091388831,6.1122,171.98,171.93,60.0]
[1717091389042,5.85,171.94,171.93,60.0]
[1717091389550,5.85,171.94,171.86,60.0]
[1717091389551,21.8385,171.93,171.86,60.0]
[1717091389759,21.8385,171.93,171.86,440.9]
[1717091389760,5.85,171.87,171.86,440.9]
[1717091391143,5.85,171.87,171.86,380.9]
[1717091391352,12.2001,171.87,171.86,276.0]
[1717091392362,23.9301,171.87,171.86,276.0]
[1717091393544,6.3501,171.87,171.86,276.0]
[1717091394661,6.123,171.89,171.86,276.0]
[1717091394863,6.123,171.88,171.86,276.0]
[1717091396566,17.58,171.9,171.86,276.0]
[1717091396866,24.0972,171.9,171.86,276.0]
[1717091397071,17.58,171.9,171.86,276.0]
[1717091397241,6.5172,171.89,171.86,276.0]
[1717091397865,17.58,171.9,171.86,276.0]
[1717091398365,15.7441,171.88,171.8,60.0]
[1717091398550,17.58,171.85,171.8,60.0]
[1717091398749,17.58,171.85,171.78,276.0]
[1717091398750,15.7441,171.9,171.83,60.0]
[1717091399070,17.58,171.87,171.81,60.0]
[1717091399268,17.58,171.87,171.78,276.0]
[1717091399492,17.58,171.87,171.8,60.0]
[1717091399691,22.0661,171.9,171.8,60.0]
[1717091399898,17.58,171.86,171.82,60.0]
[1717091400103,23.7787,171.86,171.82,60.0]
[1717091400307,23.7787,171.86,171.78,276.0]
[1717091400594,23.7787,171.86,171.8,60.0]
[1717091400894,23.7787,171.86,171.82,60.0]
[1717091401201,23.7787,171.86,171.8,60.0]
[1717091401792,23.7787,171.86,171.78,336.0]
[1717091401979,23.7174,171.83,171.78,336.0]
[1717091402167,17.58,171.83,171.8,60.0]
[1717091402366,17.58,171.86,171.82,60.0]
[1717091402676,23.8052,171.86,171.82,60.0]
[1717091403298,23.8052,171.86,171.8,60.0]
[1717091404623,23.8052,171.86,171.72,10.6689]
[1717091404624,23.8052,171.86,171.73,2.1544]
[1717091404839,23.8052,171.86,171.79,60.0]
[1717091405332,23.8124,171.86,171.81,60.0]
[1717091405534,33.3241,171.9,171.84,60.0]
[1717091405535,21.9765,171.9,171.84,60.0]
[1717091405693,23.8124,171.89,171.84,60.0]
[1717091405899,6.2324,171.88,171.82,60.0]
[1717091407026,6.2324,171.88,171.78,17.69]
[1717091407229,6.2324,171.88,171.8,60.0]
[1717091407435,17.58,171.86,171.78,60.0]
[1717091408195,17.58,171.86,171.8,60.0]
[1717091408400,17.58,171.86,171.78,60.0]
[1717091408934,17.58,171.86,171.77,60.0]
[1717091409541,17.58,171.83,171.77,60.0]
[1717091410619,17.58,171.83,171.75,60.0]
[1717091411341,5.8004762,171.88,171.83,60.0]
[1717091411519,5.8004762,171.88,171.78,6.1659]
[1717091411520,6.2857,171.93,171.85,60.0]
[1717091411704,0.68372235,171.95,171.87,60.0]
[1717091411909,17.58,171.96,171.89,60.0]
[1717091412441,17.58,171.96,171.85,17.69]
[1717091412442,6.2857,171.98,171.91,60.0]
[1717091412835,5.85,171.92,171.88,60.0]
[1717091413022,6.2857,171.98,171.88,60.0]
[1717091413023,5.85,171.89,171.88,60.0]
[1717091413521,5.85,171.89,171.84,60.0]
[1717091413732,23.4,171.9,171.86,60.0]
[1717091414032,6.2857,171.98,171.88,60.0]
[1717091414415,17.57,171.92,171.88,60.0]
[1717091414823,17.57,171.92,171.9,60.0]
[1717091416612,24.2117,171.92,171.87,60.0]
[1717091416812,6.6417,171.91,171.87,60.0]
[1717091417121,17.57,171.92,171.87,60.0]
[1717091417309,17.57,171.92,171.88,60.0]
[1717091417505,17.57,171.92,171.87,60.0]
[1717091417506,24.2117,171.92,171.87,60.0]
[1717091418547,24.2117,171.92,171.86,60.0]
[1717091418742,24.2117,171.92,171.88,60.0]
[1717091419048,17.57,171.92,171.88,60.0]
[1717091419222,6.6417,171.91,171.88,60.0]
[1717091419417,18.25372235,171.99,171.84,60.0]
[1717091419418,6.6417,171.88,171.84,60.0]
[1717091419651,17.57,171.85,171.82,60.0]
[1717091420320,24.2117,171.85,171.79,60.0]
[1717091420528,17.57,171.82,171.79,60.0]
[1717091420822,17.57,171.82,171.81,60.0]
[1717091421441,33.8063,171.82,171.75,17.69]
[1717091421648,6.5807,171.81,171.78,60.0]
[1717091421821,6.5807,171.82,171.78,60.0]
[1717091422019,17.57,171.8,171.78,60.0]
[1717091422458,17.57,171.83,171.81,60.0]
[1717091422631,15.9045,171.86,171.75,17.69]
[1717091422632,6.5807,171.85,171.83,60.0]
[1717091422945,17.57,171.84,171.83,60.0]
[1717091424738,17.57,171.84,171.81,60.0]
[1717091424935,17.57,171.84,171.83,60.0]
[1717091425349,17.57,171.88,171.87,60.0]
[1717091425654,23.5721,171.88,171.85,60.0]
[1717091426427,6.0021,171.87,171.85,60.0]
[1717091427362,6.0021,171.86,171.76,17.69]
[1717091427525,17.57,171.83,171.81,60.0]
[1717091427729,6.0021,171.82,171.81,60.0]
[1717091427949,6.0021,171.82,171.79,60.0]
[1717091428149,17.57,171.8,171.79,60.0]
[1717091429335,16.532,171.86,171.81,60.0]
[1717091429532,17.57,171.83,171.81,60.0]
[1717091430631,17.57,171.83,171.79,60.0]
[1717091430632,6.6533,171.82,171.79,60.0]
[1717091431149,17.57,171.8,171.77,60.0]
[1717091431354,17.57,171.81,171.8,60.0]
[1717091434645,17.57,171.81,171.78,60.0]
[1717091434952,6.3197,171.8,171.78,60.0]
[1717091435156,6.3197,171.8,171.76,60.0]
[1717091435468,17.57,171.78,171.76,60.0]
[1717091436850,6.3808,171.84,171.81,60.0]
[1717091437043,6.6577,171.86,171.83,60.0]
[1717091437243,17.57,171.84,171.83,60.0]
[1717091438263,17.57,171.84,171.8,60.0]
[1717091438645,17.57,171.84,171.82,60.0]
[1717091439339,6.1863,171.87,171.85,60.0]
[1717091439668,17.57,171.86,171.85,60.0]
[1717091443239,17.57,171.89,171.88,60.0]
[1717091446668,0.68372235,171.98,171.91,60.0]
[1717091446967,17.57,171.92,171.91,60.0]
[1717091448443,11.34611778,172.0,171.94,60.0]
[1717091448642,17.57,171.95,171.94,60.0]
[1717091448866,17.57,171.95,171.92,60.0]
[1717091449379,24.1867,171.95,171.92,60.0]
[1717091450870,17.57,171.95,171.92,60.0]
[1717091451162,6.4961,171.93,171.92,60.0]
[1717091452143,6.4961,171.93,171.87,60.0]
[1717091452343,5.86,171.88,171.86,60.0]
[1717091452542,5.86,171.87,171.86,60.0]
[1717091454285,6.4961,171.93,171.86,60.0]
[1717091454501,17.58,171.87,171.86,60.0]
[1717091456102,6.4961,171.93,171.9,60.0]
[1717091456277,17.58,171.91,171.9,60.0]
[1717091457975,6.3365,171.97,171.93,60.0]
[1717091458177,17.58,171.94,171.93,60.0]
[1717091460909,6.3365,171.96,171.95,60.0]
[1717091461205,23.9165,171.96,171.93,60.0]
[1717091461371,17.58,171.96,171.91,60.0]
[1717091461573,6.0427,171.95,171.91,60.0]
[1717091461967,6.0427,171.95,171.93,60.0]
[1717091462174,17.58,171.94,171.93,60.0]
[1717091465194,17.58,171.94,171.91,60.0]
[1717091465496,17.58,171.94,171.93,60.0]
[1717091466996,24.0724,171.94,171.91,60.0]
[1717091467605,24.0724,171.94,171.93,60.0]
[1717091467806,17.58,171.94,171.93,60.0]
[1717091468117,17.58,171.94,171.91,60.0]
[1717091468317,6.4924,171.98,171.91,60.0]
[1717091468318,17.58,171.92,171.91,60.0]
[1717091468985,15.244,171.97,171.93,60.0]
[1717091469199,17.58,171.94,171.93,60.0]
[1717091469520,17.58,171.94,171.91,60.0]
[1717091470103,17.58,171.99,171.95,60.0]
[1717091470412,17.58,171.96,171.95,60.0]
[1717091470803,17.58,171.96,171.93,60.0]
[1717091471402,17.58,171.96,171.95,60.0]
[1717091471791,0.68372235,172.03,171.97,60.0]
[1717091471993,17.58,171.98,171.97,60.0]
[1717091472616,21.7036,172.18,172.02,60.0]
[1717091472788,17.58,172.03,172.02,60.0]
[1717091474290,11.7,172.03,172.0,60.0]
[1717091474492,29.25,172.01,172.0,60.0]
[1717091474686,29.25,172.01,171.98,60.0]
[1717091474915,29.25,171.99,171.96,60.0]
[1717091475100,5.85,171.97,171.91,19.8422]
[1717091475420,23.4,171.99,171.95,60.0]
[1717091475630,5.85,171.96,171.95,60.0]
[1717091475793,5.85,171.96,171.93,60.0]
[1717091475991,5.85,171.94,171.93,60.0]
[1717091476498,6.4815,172.01,171.93,60.0]
[1717091476704,5.85,171.94,171.93,60.0]
[1717091476892,6.4815,172.01,171.96,60.0]
[1717091477212,6.4815,172.01,171.86,6.1032]
[1717091477213,23.4,171.99,171.98,60.0]
[1717091477521,29.25,171.99,171.98,60.0]
[1717091478304,17.55,171.99,171.98,60.0]
[1717091479587,0.68372235,172.05,172.0,60.0]
[1717091480301,7.09292235,172.05,172.0,60.0]
[1717091482725,7.09292235,172.05,172.02,60.0]
[1717091487099,5.16847356,172.07,172.04,60.0]
[1717091487414,17.55,172.05,172.04,60.0]
[1717091488400,17.55,172.08,172.04,60.0]
[1717091492827,17.55,172.08,172.06,60.0]
[1717091493199,17.55,172.08,172.04,60.0]
[1717091498224,4.63443605,172.11,172.06,60.0]
[1717091498405,5.85,172.07,172.06,60.0]
[1717091498925,5.85,172.07,172.04,60.0]
[1717091499129,21.8298,172.05,171.97,60.0]
[1717091499304,5.85,171.98,171.97,60.0]
[1717091499509,5.85,171.98,171.94,60.0]
[1717091499825,5.85,171.95,171.94,60.0]
[1717091500399,5.85,171.95,171.92,60.0]
[1717091500696,5.85,171.93,171.92,60.0]
[1717091500897,23.4,171.99,171.92,60.0]
[1717091501123,5.85,171.93,171.92,60.0]
[1717091502325,17.56,171.96,171.94,60.0]
[1717091505526,0.68372235,172.03,171.97,60.0]
[1717091505823,0.68372235,172.03,171.99,60.0]
[1717091506319,0.68372235,172.03,171.88,10.7628]
[1717091506320,17.56,172.02,172.01,60.0]
[1717091507700,6.1585,172.08,172.04,60.0]
[1717091509128,5.73418029,172.1,172.04,60.0]
[1717091509330,17.56,172.09,172.06,60.0]
[1717091509518,0.68372235,172.1,172.06,60.0]
[1717091511341,0.68372235,172.1,172.02,6.0435]
[1717091511342,7.33742235,172.15,172.08,60.0]
[1717091514122,12.35703838,172.15,172.06,60.0]
[1717091517243,12.35703838,172.15,172.03,60.0]
[1717091517925,12.35703838,172.15,172.04,60.0]
[1717091519060,7.33742235,172.15,172.06,60.0]
[1717091519231,7.33742235,172.15,172.04,60.0]
[1717091519566,7.33742235,172.15,172.0,19.8411]
[1717091519850,0.68372235,172.14,172.04,60.0]
[1717091520749,0.68372235,172.14,172.06,60.0]
[1717091524439,5.85,172.07,172.06,60.0]
[1717091526149,5.85,172.07,172.04,60.0]
[1717091526338,5.85,172.05,172.04,60.0]
[1717091526534,5.85,172.05,172.02,60.0]
[1717091526862,5.85,172.03,172.02,60.0]
[1717091527562,0.68372235,172.14,172.05,60.0]
[1717091527744,23.4,172.08,172.07,60.0]
[1717091527943,29.25,172.08,172.07,60.0]
[1717091528738,29.25,172.08,172.05,60.0]
[1717091528934,5.85,172.06,172.03,60.0]
[1717091529151,5.85,172.04,172.03,60.0]
[1717091530954,0.68372235,172.14,172.06,60.0]
[1717091531158,5.85,172.07,172.06,60.0]
[1717091533177,11.64254108,172.15,172.1,60.0]
[1717091533475,5.85,172.11,172.08,60.0]
[1717091533677,5.85,172.09,172.08,60.0]
[1717091535781,5.85,172.09,172.05,60.0]
[1717091535959,5.85,172.06,172.05,60.0]
[1717091537668,21.00734108,172.15,172.08,60.0]
[1717091537866,5.85,172.09,172.08,60.0]
[1717091538877,5.85,172.09,172.06,60.0]
[1717091539062,21.00734108,172.15,172.06,60.0]
[1717091539063,5.85,172.07,172.06,60.0]
[1717091540655,21.00734108,172.15,172.08,60.0]
[1717091541061,5.85,172.09,172.08,60.0]
[1717091542478,6.0394,172.16,172.13,60.0]
[1717091542673,6.0394,172.16,172.11,60.0]
[1717091542973,5.85,172.12,172.11,60.0]
[1717091543185,22.491809,172.19,172.14,60.0]
[1717091543749,23.4,172.17,172.14,60.0]
[1717091543956,5.85,172.15,172.14,60.0]
[1717091544149,5.85,172.15,172.07,8.7341]
[1717091544367,22.491809,172.19,172.1,60.0]
[1717091544574,5.85,172.11,172.1,60.0]
[1717091545582,23.4,172.17,172.12,60.0]
[1717091545758,5.85,172.13,172.12,60.0]
[1717091547173,23.4,172.17,172.12,60.0]
[1717091547372,5.85,172.13,172.12,60.0]
[1717091547584,23.4,172.17,172.12,60.0]
[1717091547757,5.85,172.13,172.12,60.0]
[1717091549454,27.19957369,172.19,172.14,60.0]
[1717091549455,12.16187369,172.19,172.14,60.0]
[1717091549653,5.85,172.15,172.14,60.0]
[1717091550583,5.85,172.15,172.12,60.0]
[1717091550884,29.6397,172.17,172.1,60.0]
[1717091551672,29.6397,172.17,172.08,60.0]
[1717091552264,16.6515,172.16,172.06,60.0]
[1717091553270,5.85,172.07,172.04,60.0]
[1717091553473,5.85,172.08,172.02,60.0]
[1717091553474,23.4,172.08,172.02,60.0]
[1717091554151,5.85,172.03,172.02,60.0]
[1717091555375,23.4,172.08,172.05,60.0]
[1717091555560,23.4,172.08,172.03,60.0]
[1717091555762,6.3534,172.07,172.01,60.0]
[1717091555980,22.245,172.07,172.01,60.0]
[1717091556474,22.245,172.07,171.97,60.0]
[1717091556657,5.85,171.98,171.97,60.0]
[1717091559555,5.85,171.98,171.94,60.0]
[1717091559759,5.85,171.95,171.92,60.0]
[1717091559958,5.85,171.93,171.92,60.0]
[1717091560353,6.3353,172.0,171.95,60.0]
[1717091561469,5.85,171.96,171.95,60.0]
[1717091562454,5.85,171.96,171.93,60.0]
[1717091562660,23.4,171.99,171.93,60.0]
[1717091562879,23.4,171.99,171.96,60.0]
[1717091563470,23.4,171.99,171.94,60.0]
[1717091564973,6.3353,172.0,171.96,60.0]
[1717091565186,5.85,171.97,171.96,60.0]
[1717091565569,23.4,171.99,171.98,60.0]
[1717091565756,6.187,172.05,172.0,60.0]
[1717091565963,5.85,172.01,172.0,60.0]
[1717091566158,6.187,172.05,172.02,60.0]
[1717091566386,5.85,172.03,172.0,60.0]
[1717091566564,5.85,172.01,172.0,60.0]
[1717091567979,15.8916,172.07,172.04,60.0]
[1717091567980,22.402,172.07,172.04,60.0]
[1717091568286,23.4,172.08,172.04,60.0]
[1717091568793,5.85,172.05,172.04,60.0]
[1717091572194,5.85,172.05,172.02,60.0]
[1717091572395,17.54,172.06,172.02,60.0]
[1717091572779,17.54,172.06,172.04,60.0]
[1717091574498,2.1505,172.05,172.04,60.0]
[1717091576000,2.15,172.09,172.08,60.0]
[1717091579282,2.1502,172.07,172.06,60.0]
[1717091581003,2.1496,172.12,172.11,60.0]
[1717091585086,2.1499,172.1,172.09,60.0]
[1717091592413,7.9899,172.1,172.09,60.0]
[1717091598689,2.1499,172.1,172.09,60.0]
[1717091598888,7.9899,172.1,172.09,60.0]
[1717091600022,2.1499,172.1,172.09,60.0]
[1717091600514,7.9899,172.1,172.09,60.0]
[1717091602794,2.1501,172.08,172.07,60.0]
[1717091603008,7.9901,172.08,172.07,60.0]
[1717091603713,7.9901,172.08,172.01,6.4953]
[1717091603714,2.1504,172.06,172.05,60.0]
[1717091604316,7.9904,172.06,172.05,60.0]
[1717091607544,2.1501,172.08,172.07,60.0]
[1717091607756,7.9901,172.08,172.07,60.0]
[1717091609714,2.1504,172.06,172.05,60.0]
[1717091610025,7.9904,172.06,172.05,60.0]
[1717091611336,2.1506,172.04,172.03,60.0]
[1717091612539,7.9906,172.04,172.03,60.0]
[1717091616345,2.1506,172.04,172.03,60.0]
[1717091616549,7.9906,172.04,172.03,60.0]
[1717091616840,2.1506,172.04,172.03,60.0]
[1717091617033,7.9906,172.04,172.03,60.0]
[1717091619741,7.9906,172.04,171.96,387.1273]
[1717091619742,2.1509,172.02,172.01,60.0]
[1717091620036,7.9909,172.02,172.01,60.0]
[1717091623343,5.84,172.02,171.97,60.0]
[1717091623548,7.9914,171.98,171.97,60.0]
[1717091626253,5.84,171.98,171.97,60.0]
[1717091627349,7.9912,172.0,171.99,60.0]
[1717091628341,2.1512,172.0,171.99,60.0]
[1717091634741,2.1514,171.98,171.97,60.0]
[1717091635254,2.1516,171.96,171.95,60.0]
[1717091635464,7.9916,171.96,171.95,60.0]
[1717091636151,5.84,171.96,171.95,60.0]
[1717091636533,7.9916,171.96,171.95,60.0]
[1717091637537,5.84,171.99,171.95,60.0]